bitfinex/quotes_BTCUSD_20250826
["timestamp","ask_amount","ask_price","bid_price","bid_amount"]
[1756215661046,0.68149607,110290.0,110270.0,0.18150373]
[1756215661254,0.19043558,110290.0,110270.0,0.23649592]
[1756215661465,0.18135654,110280.0,110270.0,0.05512293]
[1756215661677,0.79350296,110280.0,110270.0,0.0023979]
[1756215661895,6.06870596,110280.0,110270.0,0.00013074]
[1756215662109,6.16016798,110280.0,110270.0,0.00013074]
[1756215663634,5.89074596,110280.0,110270.0,0.00013074]
[1756215663970,1.31142296,110280.0,110270.0,0.00013074]
[1756215664266,0.69927654,110280.0,110270.0,0.00013074]
[1756215664485,0.70227654,110280.0,110270.0,0.18150373]
[1756215664693,0.70227654,110280.0,110270.0,0.21779283]
[1756215664694,0.003,110280.0,110270.0,0.21779283]
[1756215664906,0.18435654,110280.0,110270.0,0.39571283]
[1756215665113,0.79650296,110280.0,110270.0,0.00013074]
[1756215665530,0.18435654,110280.0,110270.0,0.18150373]
[1756215665736,0.18435654,110280.0,110270.0,0.00013074]
[1756215665936,0.18435654,110280.0,110270.0,0.18150373]
[1756215666146,0.003,110280.0,110270.0,0.235581]
[1756215666359,0.79650296,110280.0,110270.0,0.00013074]
[1756215666970,0.36223654,110280.0,110270.0,0.00013074]
[1756215667177,1.31438296,110280.0,110270.0,0.00013074]
[1756215667386,6.16308798,110280.0,110270.0,0.00013074]
[1756215667600,0.18142235,110240.0,110230.0,4e-05]
[1756215667821,0.18142235,110240.0,110230.0,0.00051922]
[1756215667822,1.31144877,110240.0,110230.0,0.00051922]
[1756215668062,0.69930235,110240.0,110230.0,0.00051922]
[1756215668273,0.52142235,110240.0,110230.0,0.00051922]
[1756215668485,0.34,110240.0,110230.0,0.18195802]
[1756215668696,0.34,110240.0,110230.0,0.21829914]
[1756215668924,0.26020686,110260.0,110240.0,0.18142235]
[1756215669128,0.18142235,110240.0,110230.0,0.13232236]
[1756215669336,0.79356877,110240.0,110230.0,0.04086034]
[1756215669556,0.79356877,110240.0,110230.0,0.03686034]
[1756215669771,5.91045541,110240.0,110230.0,0.00051922]
[1756215669995,5.91045541,110240.0,110230.0,1e-08]
[1756215670233,6.52260183,110240.0,110230.0,1e-08]
[1756215670650,6.52360183,110240.0,110230.0,1e-08]
[1756215670854,7.17587512,110240.0,110230.0,1e-08]
[1756215671065,5.95998779,110240.0,110230.0,1e-08]
[1756215671265,6.0633527,110240.0,110230.0,1e-08]
[1756215671516,7.10333912,110240.0,110230.0,1e-08]
[1756215671721,6.92549912,110240.0,110230.0,1e-08]
[1756215671931,7.10233912,110240.0,110230.0,1e-08]
[1756215672138,7.19378441,110240.0,110230.0,1e-08]
[1756215672352,5.41013699,110240.0,110230.0,1e-08]
[1756215672565,6.18175743,110240.0,110230.0,1e-08]
[1756215673404,6.00901743,110240.0,110230.0,1e-08]
[1756215673617,6.18685743,110240.0,110230.0,1e-08]
[1756215674051,6.27830272,110240.0,110230.0,1e-08]
[1756215674468,6.10046272,110240.0,110230.0,1e-08]
[1756215674669,6.27830272,110240.0,110230.0,1e-08]
[1756215675035,6.27827744,110240.0,110230.0,1e-08]
[1756215675248,6.2782774,110240.0,110230.0,1e-08]
[1756215675482,6.00899211,110240.0,110230.0,1e-08]
[1756215675683,6.18388211,110240.0,110230.0,1e-08]
[1756215676161,6.00604211,110240.0,110230.0,1e-08]
[1756215676363,6.17544199,110240.0,110230.0,1e-08]
[1756215676571,6.17759199,110240.0,110230.0,1e-08]
[1756215677430,6.17544199,110240.0,110230.0,1e-08]
[1756215677649,5.38545557,110240.0,110230.0,1e-08]
[1756215677850,5.47183355,110240.0,110230.0,0.00196001]
[1756215678059,6.08397997,110240.0,110230.0,0.00196001]
[1756215678468,6.08397997,110240.0,110230.0,1e-08]
[1756215678683,6.26903728,110240.0,110230.0,1e-08]
[1756215678892,6.89041989,110240.0,110230.0,1e-08]
[1756215679512,7.34041989,110240.0,110230.0,1e-08]
[1756215680148,5.39684176,110240.0,110230.0,1e-08]
[1756215680535,6.18678818,110240.0,110230.0,1e-08]
[1756215683338,7.4670946,110240.0,110230.0,1e-08]
[1756215683552,7.2598522,110240.0,110230.0,1e-08]
[1756215683770,0.52147173,110210.0,110200.0,1e-08]
[1756215683974,6.80105798,110210.0,110200.0,1e-08]
[1756215684188,6.80615798,110210.0,110200.0,1e-08]
[1756215684402,0.52152114,110180.0,110170.0,1e-08]
[1756215684607,6.27660286,110180.0,110170.0,1e-08]
[1756215684810,6.57314815,110180.0,110170.0,1e-08]
[1756215685017,6.82314815,110180.0,110170.0,1e-08]
[1756215685242,6.21101636,110180.0,110170.0,1e-08]
[1756215685449,6.82316278,110180.0,110170.0,1e-08]
[1756215685685,1.13370052,110160.0,110150.0,4e-05]
[1756215685882,6.25671793,110160.0,110150.0,8.789e-05]
[1756215686082,6.26181793,110160.0,110150.0,8.789e-05]
[1756215687223,6.87396435,110160.0,110150.0,1e-08]
[1756215687425,6.87696435,110160.0,110150.0,1e-08]
[1756215688229,6.08705793,110160.0,110150.0,1e-08]
[1756215688438,6.26481793,110160.0,110150.0,1e-08]
[1756215688778,6.17161636,110160.0,110150.0,0.00100001]
[1756215689022,6.17456636,110160.0,110150.0,0.00100001]
[1756215689273,6.78671278,110160.0,110150.0,0.00100001]
[1756215689450,6.78371278,110160.0,110150.0,1e-08]
[1756215689658,6.17156636,110160.0,110150.0,0.00200001]
[1756215689857,6.26301165,110160.0,110150.0,0.00300001]
[1756215690927,6.26301165,110160.0,110150.0,1e-08]
[1756215691354,6.08525165,110160.0,110150.0,1e-08]
[1756215691559,6.26006165,110160.0,110150.0,1e-08]
[1756215691811,6.26301165,110160.0,110150.0,1e-08]
[1756215692440,6.87515807,110160.0,110150.0,1e-08]
[1756215695182,6.86885725,110160.0,110150.0,1e-08]
[1756215695315,6.87516389,110160.0,110150.0,1e-08]
[1756215695946,5.37871576,110160.0,110150.0,1e-08]
[1756215696152,6.16858218,110160.0,110150.0,1e-08]
[1756215696360,6.16643218,110160.0,110150.0,1e-08]
[1756215696570,5.55428576,110160.0,110150.0,0.00492001]
[1756215696784,5.64871218,110160.0,110150.0,0.00492001]
[1756215696992,5.82643218,110160.0,110150.0,0.00492001]
[1756215697201,5.12282374,110160.0,110150.0,0.00492001]
[1756215697412,0.36558074,110160.0,110150.0,0.07743961]
[1756215697613,1.31772716,110160.0,110150.0,0.00492001]
[1756215698235,0.97772716,110160.0,110150.0,0.00492]
[1756215698642,0.97872716,110160.0,110150.0,0.00792]
[1756215698865,1.31872716,110160.0,110150.0,0.00792]
[1756215699062,0.70758074,110160.0,110150.0,0.00792]
[1756215699265,0.34830664,110160.0,110150.0,0.18949058]
[1756215699488,0.00830664,110160.0,110150.0,0.22659834]
[1756215699716,0.001,110160.0,110150.0,0.39057996]
[1756215700055,0.001,110160.0,110150.0,0.2819526]
[1756215700254,0.79470052,110160.0,110150.0,0.00892]
[1756215700477,0.79470052,110160.0,110150.0,0.00792]
[1756215700719,0.1815541,110160.0,110150.0,0.00492]
[1756215700924,0.18157058,110150.0,110130.0,0.26052341]
[1756215701087,0.78978642,110150.0,110140.0,0.18361707]
[1756215701260,0.17764,110150.0,110140.0,0.18361707]
[1756215701455,0.971357,110150.0,110140.0,0.00203]
[1756215701667,1.31768368,110150.0,110140.0,0.00203]
[1756215701931,0.18158707,110140.0,110130.0,4.79e-05]
[1756215702129,0.18158707,110140.0,110130.0,0.18165145]
[1756215702327,0.18158707,110140.0,110130.0,0.18368145]
[1756215702525,0.59141058,110150.0,110130.0,0.18368145]
[1756215702734,0.77533783,110150.0,110140.0,0.18158707]
[1756215702929,0.70549783,110150.0,110140.0,0.00507]
[1756215703131,1.31764425,110150.0,110140.0,0.00203]
[1756215703564,1.31764425,110150.0,110140.0,0.00103]
[1756215704566,0.34632725,110150.0,110140.0,0.18465707]
[1756215704766,0.1815541,110160.0,110150.0,0.18157058]
[1756215704767,0.34,110160.0,110150.0,0.18157058]
[1756215704968,0.00633041,110160.0,110150.0,0.18564058]
[1756215705174,0.18389041,110160.0,110150.0,0.18464058]
[1756215705407,0.17756,110160.0,110150.0,0.18464058]
[1756215705758,0.97759263,110160.0,110150.0,0.00203]
[1756215705964,0.97759263,110160.0,110150.0,0.18360058]
[1756215706171,0.86352463,110170.0,110150.0,0.18360058]
[1756215706374,0.3591141,110160.0,110150.0,0.00203]
[1756215706580,0.36544836,110160.0,110150.0,0.00203]
[1756215706785,0.36544836,110160.0,110150.0,0.18760058]
[1756215707000,0.00633426,110160.0,110150.0,0.22976289]
[1756215707226,0.26043434,110190.0,110160.0,0.1815541]
[1756215707439,5.11628513,110180.0,110170.0,0.18153762]
[1756215707618,0.36538057,110180.0,110170.0,0.18356762]
[1756215708074,0.00633844,110180.0,110170.0,0.27706964]
[1756215708285,0.18153572,110200.0,110190.0,0.18150467]
[1756215708484,0.5,110190.0,110180.0,0.18150646]
[1756215708682,4.76358437,110190.0,110180.0,0.18150646]
[1756215708797,0.00634137,110190.0,110180.0,0.18358436]
[1756215708997,0.00634137,110190.0,110180.0,0.18562436]
[1756215709202,0.00634137,110190.0,110180.0,0.22274667]
[1756215709844,0.00634137,110190.0,110180.0,0.22774667]
[1756215710044,0.18784604,110190.0,110180.0,0.18858436]
[1756215710244,0.79999246,110190.0,110180.0,0.0050479]
[1756215710451,0.80507246,110190.0,110180.0,0.0050479]
[1756215711167,0.80507246,110190.0,110180.0,0.0060479]
[1756215711581,5.99377748,110190.0,110180.0,0.0060479]
[1756215712017,6.08522277,110190.0,110180.0,0.0060479]
[1756215712230,6.08014643,110190.0,110180.0,0.0060479]
[1756215712439,6.08226643,110190.0,110180.0,0.0060479]
[1756215712849,5.99082114,110190.0,110180.0,0.0060479]
[1756215713052,6.16822114,110190.0,110180.0,0.0060479]
[1756215713405,5.55607472,110190.0,110180.0,0.0060479]
[1756215713767,6.16610114,110190.0,110180.0,0.0060479]
[1756215714921,5.2850927,110190.0,110180.0,0.0080779]
[1756215715115,5.2850927,110190.0,110180.0,0.19275904]
[1756215715116,0.1878497,110190.0,110180.0,0.19275904]
[1756215715368,0.3652097,110190.0,110180.0,0.23018862]
[1756215715534,0.18370503,110190.0,110180.0,0.23018862]
[1756215715744,0.00634503,110190.0,110180.0,0.39417024]
[1756215716029,0.18153029,110220.0,110200.0,0.1814882]
[1756215716030,0.67736,110210.0,110200.0,0.1814882]
[1756215716314,0.00634719,110210.0,110200.0,0.1866782]
[1756215716522,0.18781892,110210.0,110200.0,0.00519]
[1756215716934,0.79996534,110210.0,110200.0,0.00519]
[1756215717189,0.18781892,110210.0,110200.0,0.1866782]
[1756215717574,0.18781892,110210.0,110200.0,0.00519]
[1756215717775,0.68007124,110210.0,110200.0,0.002]
[1756215717976,0.68007124,110210.0,110200.0,0.1855182]
[1756215718182,0.18781892,110210.0,110200.0,0.22758507]
[1756215718395,0.00634719,110210.0,110200.0,0.22758507]
[1756215718803,0.18781892,110210.0,110200.0,0.22758507]
[1756215719007,0.00634719,110210.0,110200.0,0.22758507]
[1756215719216,0.18781892,110210.0,110200.0,0.1906782]
[1756215719632,0.18781892,110210.0,110200.0,0.00919]
[1756215719866,0.18781892,110210.0,110200.0,0.00603]
[1756215720216,0.18781892,110210.0,110200.0,0.00919]
[1756215720429,0.00634719,110210.0,110200.0,0.28667742]
[1756215720646,0.18149441,110270.0,110240.0,0.18141895]
[1756215720877,5.43863389,110260.0,110250.0,0.18456589]
[1756215721086,0.00633752,110260.0,110250.0,0.18659589]
[1756215721290,0.18772696,110260.0,110250.0,0.05113769]
[1756215721496,0.18138944,110260.0,110250.0,0.05113769]
[1756215721702,0.18138944,110260.0,110250.0,0.23254358]
[1756215721908,0.18186885,110260.0,110250.0,0.23254358]
[1756215722120,0.18186885,110260.0,110250.0,0.00519]
[1756215722505,0.18186885,110260.0,110240.0,0.45008437]
[1756215722916,0.18140589,110250.0,110240.0,0.00316]
[1756215723122,0.18142235,110240.0,110230.0,0.1814388]
[1756215723327,0.80336556,110250.0,110230.0,0.1866288]
[1756215723542,0.18142235,110240.0,110230.0,0.00203]
[1756215723749,0.18142235,110240.0,110220.0,0.3708028]
[1756215723954,0.1814388,110230.0,110220.0,0.27607729]
[1756215724159,0.18142235,110240.0,110230.0,0.1834688]
[1756215724367,0.18142235,110240.0,110230.0,0.00203]
[1756215724577,0.1814388,110230.0,110220.0,0.27607729]
[1756215724791,0.18142235,110240.0,110230.0,0.1814388]
[1756215724996,0.1814388,110230.0,110220.0,0.50683804]
[1756215725173,0.1814388,110230.0,110220.0,0.50886804]
[1756215725379,0.1814388,110230.0,110220.0,0.18145527]
[1756215725588,0.1814388,110230.0,110220.0,0.18664527]
[1756215725798,0.18145527,110220.0,110210.0,0.42837663]
[1756215726021,0.18145527,110220.0,110210.0,0.34474865]
[1756215726222,0.79432818,110230.0,110210.0,0.57567578]
[1756215726450,0.1814388,110230.0,110210.0,0.57883578]
[1756215727031,0.18145527,110220.0,110210.0,0.30714886]
[1756215727277,0.18148225,110210.0,110190.0,0.25436152]
[1756215727493,0.1814882,110200.0,110190.0,0.52286354]
[1756215727711,0.79437163,110210.0,110190.0,0.52502354]
[1756215727942,0.1814882,110200.0,110190.0,0.52502354]
[1756215728159,0.18148225,110210.0,110190.0,0.52502354]
[1756215728344,0.18148225,110210.0,110200.0,0.1814882]
[1756215728619,0.18148225,110210.0,110190.0,0.52502354]
[1756215728833,0.18148225,110210.0,110200.0,0.1814882]
[1756215729050,0.18148225,110210.0,110200.0,0.1845482]
[1756215729493,0.18148225,110210.0,110200.0,0.1867082]
[1756215729732,0.19056261,110200.0,110170.0,0.00306]
[1756215729949,0.19056261,110200.0,110150.0,0.1845385]
[1756215729950,0.18152114,110180.0,110150.0,0.1845385]
[1756215730173,0.3675799,110190.0,110170.0,0.18675762]
[1756215730401,0.19691084,110190.0,110170.0,0.25179611]
[1756215730670,0.18152114,110180.0,110170.0,0.25179611]
[1756215731127,0.18153762,110170.0,110160.0,0.09146202]
[1756215731350,0.18153762,110170.0,110160.0,0.26850992]
[1756215731571,0.18153762,110170.0,110160.0,0.1770479]
[1756215731795,0.18153762,110170.0,110160.0,4.79e-05]
[1756215732011,0.973497,110170.0,110160.0,4.79e-05]
[1756215732232,0.18787235,110170.0,110160.0,0.186822]
[1756215732643,0.18153762,110170.0,110160.0,0.24145716]
[1756215733006,0.18153762,110170.0,110160.0,0.23939716]
[1756215733237,0.79441052,110180.0,110160.0,0.23939716]
[1756215733452,0.18153762,110170.0,110160.0,0.187822]
[1756215733675,0.69844114,110180.0,110160.0,0.187822]
[1756215733898,0.18153762,110170.0,110160.0,0.187822]
[1756215734099,0.69844114,110180.0,110160.0,0.189822]
[1756215734308,0.70478065,110180.0,110160.0,0.189822]
[1756215734545,0.794427,110170.0,110160.0,0.0030479]
[1756215734751,0.18787711,110170.0,110160.0,0.182602]
[1756215734980,0.18787721,110170.0,110160.0,0.181602]
[1756215735206,0.18787721,110170.0,110160.0,0.182602]
[1756215735421,0.18787721,110170.0,110160.0,0.184762]
[1756215735899,0.18787721,110170.0,110160.0,4.79e-05]
[1756215736128,1.23432188,110170.0,110160.0,4.79e-05]
[1756215736349,1.23753188,110170.0,110160.0,4.79e-05]
[1756215736570,6.0862369,110170.0,110160.0,4.79e-05]
[1756215736796,6.2631169,110170.0,110160.0,0.0010479]
[1756215737018,6.89543974,110170.0,110160.0,1e-08]
[1756215737247,5.56626165,110170.0,110160.0,1e-08]
[1756215737476,6.35092114,110170.0,110160.0,1e-08]
[1756215738392,6.35092114,110170.0,110160.0,0.002]
[1756215738776,0.18161364,110130.0,110110.0,0.19397818]
[1756215739030,0.18795323,110130.0,110110.0,0.25653353]
[1756215739237,0.52794314,110130.0,110120.0,0.1891103]
[1756215739447,0.00633959,110130.0,110120.0,0.18684005]
[1756215739651,0.18158707,110140.0,110130.0,0.18160355]
[1756215739963,0.18791921,110140.0,110130.0,0.19559319]
[1756215740182,0.18158707,110140.0,110120.0,0.45900307]
[1756215740354,0.18160355,110130.0,110120.0,0.44992207]
[1756215740580,0.79447645,110140.0,110130.0,0.18160355]
[1756215740581,0.97131645,110140.0,110130.0,0.18160355]
[1756215740703,1.213412,110150.0,110140.0,0.18158707]
[1756215740925,0.00632929,110150.0,110140.0,0.22334213]
[1756215741142,0.17684,110160.0,110150.0,0.18157058]
[1756215741356,0.34,110160.0,110150.0,0.18373058]
[1756215741562,0.34,110160.0,110150.0,0.18679058]
[1756215741968,0.34,110160.0,110150.0,0.18579058]
[1756215742190,0.34,110160.0,110150.0,0.18273058]
[1756215742389,0.34,110160.0,110150.0,0.18583912]
[1756215742584,0.5235541,110160.0,110150.0,0.18161912]
[1756215742795,0.342,110160.0,110150.0,0.18377912]
[1756215743016,0.002,110160.0,110150.0,0.22428367]
[1756215743217,0.002,110160.0,110150.0,0.49254569]
[1756215743623,0.1835541,110160.0,110150.0,0.35841912]
[1756215744168,0.1835541,110160.0,110150.0,0.18683912]
[1756215744169,0.002,110160.0,110150.0,0.18683912]
[1756215744488,0.002,110160.0,110150.0,0.27830114]
[1756215745105,0.002,110160.0,110150.0,0.27834114]
[1756215745310,0.35833796,110170.0,110160.0,0.1815541]
[1756215745311,0.1768,110170.0,110160.0,0.1815541]
[1756215745518,0.34,110180.0,110170.0,0.18153762]
[1756215745723,0.34632445,110180.0,110170.0,0.18675762]
[1756215745947,0.34,110180.0,110170.0,0.18675762]
[1756215746159,0.18153762,110170.0,110150.0,0.43225912]
[1756215746374,0.1836641,110160.0,110150.0,0.17680854]
[1756215746586,1.13976348,110160.0,110150.0,8.854e-05]
[1756215746802,1.14608875,110160.0,110150.0,8.854e-05]
[1756215747513,1.2157129,110160.0,110150.0,8.854e-05]
[1756215747750,6.06440119,110160.0,110150.0,8.854e-05]
[1756215747972,6.06440174,110160.0,110150.0,8.854e-05]
[1756215748397,6.06440174,110160.0,110150.0,0.00108854]
[1756215748830,6.06440174,110160.0,110150.0,8.854e-05]
[1756215749491,5.97495645,110160.0,110150.0,8.854e-05]
[1756215749676,6.05700443,110160.0,110150.0,8.854e-05]
[1756215750118,6.05489443,110160.0,110150.0,8.854e-05]
[1756215750371,5.44200505,110160.0,110150.0,0.18165912]
[1756215750802,5.44200505,110160.0,110150.0,8.854e-05]
[1756215751041,6.05700443,110160.0,110150.0,8.854e-05]
[1756215751461,6.08444003,110160.0,110150.0,8.854e-05]
[1756215751666,6.17490205,110160.0,110150.0,8.854e-05]
[1756215751870,6.17590205,110160.0,110150.0,8.854e-05]
[1756215752284,6.17490205,110160.0,110150.0,8.854e-05]
[1756215754433,6.17157205,110160.0,110150.0,8.854e-05]
[1756215754651,6.17158799,110160.0,110150.0,8.854e-05]
[1756215754942,6.17479799,110160.0,110150.0,8.854e-05]
[1756215755388,6.21104955,110160.0,110150.0,8.854e-05]
[1756215755807,7.36480976,110160.0,110150.0,1e-08]
[1756215756028,0.52162005,110120.0,110110.0,0.0002]
[1756215756257,0.52163654,110110.0,110100.0,4e-05]
[1756215756497,1.13454242,110100.0,110090.0,1e-08]
[1756215756708,6.20240076,110100.0,110090.0,1e-08]
[1756215756927,6.24521395,110100.0,110090.0,1e-08]
[1756215757142,6.03077076,110100.0,110090.0,1e-08]
[1756215757356,6.27893,110100.0,110090.0,1e-08]
[1756215757601,5.41503559,110100.0,110090.0,1e-08]
[1756215757834,6.16625268,110100.0,110090.0,1e-08]
[1756215758261,6.16822268,110100.0,110090.0,1e-08]
[1756215758487,5.5533633,110100.0,110090.0,1e-08]
[1756215758757,6.16725268,110100.0,110090.0,1e-08]
[1756215758966,6.16921268,110100.0,110090.0,1e-08]
[1756215759176,5.99273268,110100.0,110090.0,1e-08]
[1756215759388,6.25869797,110100.0,110090.0,1e-08]
[1756215759603,6.08117797,110100.0,110090.0,1e-08]
[1756215759813,6.16625268,110100.0,110090.0,0.00721001]
[1756215760049,6.16625268,110100.0,110090.0,0.00200001]
[1756215760473,5.89827066,110100.0,110090.0,0.00721001]
[1756215760684,0.70465828,110100.0,110090.0,0.00721001]
[1756215760892,0.70465828,110100.0,110090.0,0.18887955]
[1756215761108,0.00648524,110100.0,110090.0,0.31741806]
[1756215761536,0.00014348,110100.0,110090.0,0.31741806]
[1756215761959,0.18179652,110100.0,110090.0,0.00721001]
[1756215762386,0.80102791,110100.0,110090.0,0.00721001]
[1756215762639,0.80102791,110100.0,110090.0,0.00521001]
[1756215762864,0.80102791,110100.0,110090.0,1e-08]
[1756215763073,0.80202791,110100.0,110090.0,0.00700001]
[1756215763285,0.80202791,110100.0,110090.0,0.19387955]
[1756215763488,0.36557853,110100.0,110090.0,0.19387955]
[1756215763693,0.18392549,110100.0,110090.0,0.19387955]
[1756215763905,0.00748549,110100.0,110090.0,0.19387955]
[1756215764557,0.00114348,110100.0,110090.0,0.19387955]
[1756215764963,0.00114348,110100.0,110090.0,0.34056211]
[1756215765756,0.18279652,110100.0,110090.0,0.28534157]
[1756215765959,0.18279652,110100.0,110090.0,0.00700001]
[1756215765960,0.80203006,110100.0,110090.0,0.00700001]
[1756215766591,1.14400006,110100.0,110090.0,0.00700001]
[1756215766796,5.90124306,110100.0,110090.0,0.00700001]
[1756215766998,5.99270508,110100.0,110090.0,0.00700001]
[1756215767214,6.08711037,110100.0,110090.0,0.00700001]
[1756215768259,6.08711037,110100.0,110090.0,1e-08]
[1756215768260,6.10545557,110100.0,110090.0,1e-08]
[1756215768888,6.08611037,110100.0,110090.0,1e-08]
[1756215769306,6.08711037,110100.0,110090.0,1e-08]
[1756215769506,6.08611037,110100.0,110090.0,1e-08]
[1756215769714,5.64662099,110100.0,110090.0,1e-08]
[1756215769917,5.99170508,110100.0,110090.0,1e-08]
[1756215770125,5.89827306,110100.0,110090.0,1e-08]
[1756215770368,6.07459306,110100.0,110090.0,1e-08]
[1756215770581,6.07656306,110100.0,110090.0,1e-08]
[1756215770790,6.16802508,110100.0,110090.0,1e-08]
[1756215770987,5.64758099,110100.0,110090.0,1e-08]
[1756215771196,6.16705508,110100.0,110090.0,1e-08]
[1756215771395,6.16905508,110100.0,110090.0,0.00100001]
[1756215771611,5.28838368,110100.0,110090.0,0.18787955]
[1756215771819,5.28305064,110100.0,110090.0,0.18787955]
[1756215772028,0.18376764,110100.0,110090.0,0.18787955]
[1756215772437,0.18376764,110100.0,110090.0,0.00621001]
[1756215772438,0.97931006,110100.0,110090.0,0.00621001]
[1756215772651,6.18012615,110100.0,110090.0,0.00100001]
[1756215773069,6.18308615,110100.0,110090.0,0.00100001]
[1756215773905,6.00680615,110100.0,110090.0,0.00100001]
[1756215774115,6.18008615,110100.0,110090.0,0.00100001]
[1756215774316,6.18304615,110100.0,110090.0,0.00100001]
[1756215774527,6.17670199,110100.0,110090.0,0.00100001]
[1756215774727,6.18304754,110100.0,110090.0,0.00100001]
[1756215775227,6.19605578,110100.0,110090.0,0.00100001]
[1756215775443,5.98456068,110100.0,110090.0,0.00100001]
[1756215775651,6.16621372,110100.0,110090.0,0.00100001]
[1756215776591,6.20239026,110100.0,110090.0,0.00100001]
[1756215777179,5.42795381,110100.0,110090.0,0.00100001]
[1756215777497,6.21704319,110100.0,110090.0,0.00100001]
[1756215777901,6.21700319,110100.0,110090.0,0.00100001]
[1756215778104,6.21700319,110100.0,110090.0,1e-08]
[1756215778383,6.2674626,110100.0,110090.0,1e-08]
[1756215779226,6.24124791,110100.0,110090.0,1e-08]
[1756215779638,6.2674626,110100.0,110090.0,1e-08]
[1756215780216,6.0913026,110100.0,110090.0,1e-08]
[1756215780444,6.24124791,110100.0,110090.0,1e-08]
[1756215780781,6.28193148,110100.0,110090.0,1e-08]
[1756215780910,6.50814617,110100.0,110090.0,1e-08]
[1756215781128,6.50814617,110100.0,110040.0,0.00339]
[1756215781129,0.18173557,110050.0,110040.0,0.00339]
[1756215781347,4.98167217,110050.0,110040.0,0.00339]
[1756215781593,0.36416371,110050.0,110040.0,0.25968169]
[1756215781810,0.00634814,110050.0,110040.0,0.25968169]
[1756215782239,0.00634814,110050.0,110040.0,0.35114371]
[1756215782444,0.87358757,110080.0,110060.0,0.18171906]
[1756215782660,4.757243,110070.0,110060.0,0.18171906]
[1756215782878,0.18171906,110060.0,110040.0,0.29297969]
[1756215783109,0.18171906,110060.0,110050.0,0.00521]
[1756215783110,0.1880792,110060.0,110050.0,0.00521]
[1756215783318,0.1880792,110060.0,110050.0,0.18694557]
[1756215783525,0.00636014,110060.0,110050.0,0.18694557]
[1756215783725,0.18808211,110060.0,110050.0,0.18694557]
[1756215783934,0.36416211,110060.0,110050.0,0.00521]
[1756215784159,1.06849696,110060.0,110050.0,0.00521]
[1756215784778,1.06849696,110060.0,110050.0,0.00921]
[1756215784984,0.97705167,110060.0,110050.0,0.00921]
[1756215785200,0.97705167,110060.0,110050.0,0.19094557]
[1756215785450,0.97705167,110060.0,110050.0,0.00921]
[1756215785666,0.97705167,110060.0,110050.0,0.01221]
[1756215786075,5.82575669,110060.0,110050.0,0.007]
[1756215786272,6.25917198,110060.0,110050.0,0.007]
[1756215786484,6.29845185,110060.0,110050.0,0.007]
[1756215786909,6.29549185,110060.0,110050.0,0.007]
[1756215787322,6.29868185,110060.0,110050.0,0.007]
[1756215788973,6.29868185,110060.0,110050.0,0.00723483]
[1756215789443,6.32291503,110060.0,110050.0,0.00723483]
[1756215789869,6.32291503,110060.0,110050.0,0.00423483]
[1756215790294,0.18175209,110040.0,110030.0,0.00024]
[1756215790554,6.32398968,110040.0,110030.0,0.00024]
[1756215790779,5.74342659,110040.0,110030.0,1e-08]
[1756215790992,0.5217686,110030.0,110020.0,0.00028]
[1756215791202,6.10677818,110030.0,110020.0,0.00028]
[1756215791407,6.10677818,110030.0,110020.0,0.00017657]
[1756215791408,5.98814154,110030.0,110020.0,0.00017657]
[1756215791614,6.26071683,110030.0,110020.0,0.00017657]
[1756215791827,6.08479683,110030.0,110020.0,0.00017657]
[1756215792035,6.26067683,110030.0,110020.0,0.00017657]
[1756215792243,6.21220451,110030.0,110020.0,0.00017657]
[1756215793326,6.21520451,110030.0,110020.0,0.00017657]
[1756215793530,6.33633887,110030.0,110020.0,0.00017657]
[1756215793734,6.34028934,110030.0,110020.0,0.00017657]
[1756215794144,6.33709934,110030.0,110020.0,0.00017657]
[1756215794359,6.36449535,110030.0,110020.0,0.00017657]
[1756215794563,6.34029038,110030.0,110020.0,0.00017657]
[1756215794780,6.34029038,110030.0,110020.0,1e-08]
[1756215794993,0.52178512,110020.0,110010.0,1e-08]
[1756215795199,6.09879898,110020.0,110010.0,0.00014308]
[1756215795415,6.15240781,110020.0,110010.0,0.00014308]
[1756215795625,6.35240781,110020.0,110010.0,0.00014308]
[1756215795884,0.52183471,109990.0,109980.0,0.0002]
[1756215796113,6.25749243,109990.0,109980.0,0.00024777]
[1756215796325,6.32987916,109990.0,109980.0,0.00024777]
[1756215797007,6.34667178,109990.0,109980.0,0.00024777]
[1756215797233,6.34986178,109990.0,109980.0,0.00024777]
[1756215797673,5.98447468,109990.0,109980.0,1e-08]
[1756215797890,6.38212328,109990.0,109980.0,1e-08]
[1756215798100,6.6562845,109990.0,109980.0,0.00100001]
[1756215798373,5.72926468,109990.0,109980.0,0.00296001]
[1756215798583,5.72926468,109990.0,109980.0,0.00516001]
[1756215798797,5.72926468,109990.0,109980.0,0.00200001]
[1756215798798,6.34667178,109990.0,109980.0,0.00200001]
[1756215799004,6.34967178,109990.0,109980.0,0.00200001]
[1756215799225,6.34765178,109990.0,109980.0,0.00200001]
[1756215799501,6.34967178,109990.0,109980.0,1e-08]
[1756215799707,6.377023,109990.0,109980.0,1e-08]
[1756215799913,6.374833,109990.0,109980.0,1e-08]
[1756215800128,5.21438468,109990.0,109980.0,0.00516001]
[1756215800343,4.92597605,109990.0,109980.0,0.18701125]
[1756215800555,5.63073584,109990.0,109980.0,0.00516001]
[1756215800774,5.44990113,109990.0,109980.0,0.19101125]
[1756215801092,0.001,109990.0,109980.0,0.19101125]
[1756215801317,0.97410181,109990.0,109980.0,0.00916001]
[1756215801550,5.206403,109990.0,109980.0,0.00516001]
[1756215801779,5.8217901,109990.0,109980.0,0.00516001]
[1756215801998,5.8227901,109990.0,109980.0,0.19401125]
[1756215802228,5.8227901,109990.0,109980.0,0.01216001]
[1756215802476,6.16912283,109990.0,109980.0,0.01216001]
[1756215803133,6.16912283,109990.0,109980.0,0.01416001]
[1756215803388,6.16912283,109990.0,109980.0,0.00716001]
[1756215803389,5.55273573,109990.0,109980.0,0.00716001]
[1756215803614,5.55373711,109990.0,109980.0,0.01116001]
[1756215803832,6.16912421,109990.0,109980.0,0.00716001]
[1756215804281,5.55473711,109990.0,109980.0,0.01416001]
[1756215804504,5.99424545,109990.0,109980.0,0.19601125]
[1756215804757,4.76557835,109990.0,109980.0,0.19601125]
[1756215804992,0.002,109990.0,109980.0,0.28747327]
[1756215805449,0.68383471,109990.0,109980.0,0.01416001]
[1756215805670,5.55646481,109990.0,109980.0,0.01416001]
[1756215805862,5.65424724,109990.0,109980.0,0.01416001]
[1756215806139,0.18421714,109990.0,109980.0,0.19828439]
[1756215806360,0.00633714,109990.0,109980.0,0.28047327]
[1756215806618,1.31308528,110000.0,109990.0,0.18183471]
[1756215806863,0.18183471,109990.0,109980.0,0.18905125]
[1756215807076,0.8035612,109990.0,109980.0,0.00916001]
[1756215807287,0.89500649,109990.0,109980.0,0.19401125]
[1756215807501,0.27961939,109990.0,109980.0,0.00516001]